[Event "EYTCC Open U12 2018"]
[Site "Bad Blankeburg"]
[Date "2018.07.16"]
[Round "6"]
[White "Babula, Vlastimil"]
[Black "Metzdorf, Matteo"]
[Result "1-0"]
[ECO "C01"]
[WhiteElo "1800"]
[BlackElo "1878"]
[Annotator "NA RC"]
[PlyCount "87"]
[EventDate "2018.07.12"]
[EventType "swiss"]
[EventCountry "GER"]
[SourceTitle "playchess.com"]
[Source "ChessBase"]
[SourceQuality "1"]
[TimeControl "40/5400+30:1800+30"]

1. e4 {[%emt 0:00:00]} e6 {[%emt 0:00:00]} 2. d4 {[%emt 0:00:07]} d5 {[%emt 0:00:00]} 3. exd5 {[%emt 0:01:30]} exd5 {[%emt 0:00:00]} 4. c4 {[%emt 0:00:54]} Nf6 {[%emt 0:04:39]} 5. Nc3 {[%emt 0:01:39]} Be7 {[%emt 0:05:18]} 6. Nf3 {[%emt 0:02:05]} O-O {[%emt 0:06:02]} 7. Bd3 {[%emt 0:05:53]} c6 {[%emt 0:03:28]} 8. O-O {[%emt 0:00:08]} Bg4 {[%emt 0:02:11] LiveBook: 10 Partien} 9. c5 {[%emt 0:01:58] C01: French: Exchange Variation} (9. h3 Bh5 10. Bf4 dxc4 11. Bxc4 Nbd7 12. Rc1 Nb6 13. Bd3 Nbd5 14. Nxd5 Nxd5 15. Bg3 Bg6 16. Bxg6 hxg6 17. Re1 Bf6 18. Ne5 Re8 19. a3 {½-½ (19) Kagramanianz,V (2292)-Boricsev,O (2343) Mukachevo 2017}) 9... b6 {[%emt 0:01:36]} 10. b4 {[%emt 0:00:08]} a5 {[%emt 0:00:24]} 11. Na4 {[%emt 0:01:23] [#]} Nbd7 $1 {[%emt 0:00:50]} 12. Rb1 $146 {[%emt 0:07:34]} (12. Nxb6 $15 Nxb6 13. cxb6 Bxf3 14. Qxf3 Qxb6 15. Bg5) ({Predecessor:} 12. Bd2 axb4 13. Bxb4 bxc5 14. Nxc5 Nxc5 15. dxc5 {½-½ (53) Baranyai,S-Lovasi,K Hungary 1993}) 12... axb4 {[%emt 0:02:17]} 13. cxb6 {[%emt 0:02:48]} Nxb6 {[%emt 0:01:38]} 14. Nxb6 {[%emt 0:09:04]} Qxb6 {[%emt 0:00:14]} 15. Be3 {[%emt 0:01:00]} Rxa2 {[%emt 0:04:36]} 16. h3 {[%emt 0:02:00]} Bh5 {[%emt 0:14:46]} 17. g4 {[%emt 0:07:02]} Bg6 $19 {[%emt 0:01:02]} 18. Ne5 {[%emt 0:00:15]} Rc8 {[%emt 0:08:40]} 19. g5 {[%emt 0:19:38]} Ne8 {[%emt 0:07:04]} 20. Bxg6 {[%emt 0:00:47]} hxg6 {[%emt 0:01:09]} 21. h4 {[%emt 0:00:29]} Nd6 {[%emt 0:06:50]} 22. h5 {[%emt 0:02:49]} gxh5 {[%emt 0:03:12]} 23. Qxh5 {[%emt 0:00:36]} g6 {[%emt 0:00:43]} 24. Nxg6 {[%emt 0:04:11]} fxg6 {[%emt 0:00:32]} 25. Qxg6+ {[%emt 0:00:05]} Kf8 {[%emt 0:00:36]} 26. Qe6 {[%emt 0:02:02]} Qd8 {[%emt 0:13:00]} 27. f4 {[%emt 0:03:07]} Ra3 {[%emt 0:03:30]} 28. Rf3 {[%emt 0:00:53]} Nf7 {[%emt 0:06:43]} 29. g6 {[%emt 0:01:20]} Nh8 {[%emt 0:00:59]} 30. Rh3 {[%emt 0:02:53]} Bh4 {[%emt 0:01:49]} 31. f5 {[%emt 0:03:32]} Kg7 {[%emt 0:00:50]} 32. Rxb4 {[%emt 0:05:11]} Ra1+ {[%emt 0:00:38]} 33. Kg2 {[%emt 0:00:07]} Ra2+ {[%emt 0:00:13]} 34. Kf3 {[%emt 0:00:08]} Rc7 {[%emt 0:00:38]} 35. Qe5+ {[%emt 0:01:13]} Bf6 {[%emt 0:00:47]} 36. Rh7+ {[%emt 0:00:11]} Kg8 {[%emt 0:00:28]} 37. Qxc7 {[%emt 0:00:55]} Qxc7 {[%emt 0:00:20]} 38. Rxc7 {[%emt 0:00:08]} Ra8 {[%emt 0:00:21]} 39. Bh6 {[%emt 0:01:08]} Re8 {[%emt 0:00:26]} 40. Ra4 {[%emt 0:03:15]} Rd8 {[%emt 0:00:34]} 41. Raa7 {[%emt 0:30:44]} Re8 {[%emt 0:30:21]} 42. Bg7 {[%emt 0:01:37]} Bg5 {[%emt 0:00:32]} 43. Be5 {[%emt 0:00:22]} Rd8 {[%emt 0:00:27]} 44. Rh7 {[%emt 0:00:26]} 1-0

[Event "EYTCC Open U12 2018"]
[Site "Bad Blankeburg"]
[Date "2018.07.16"]
[Round "6"]
[White "Costa, Leonardo"]
[Black "Hlavina, Matous"]
[Result "0-1"]
[ECO "C06"]
[WhiteElo "1746"]
[BlackElo "1776"]
[Annotator "NA RC"]
[PlyCount "148"]
[EventDate "2018.07.12"]
[EventType "swiss"]
[EventCountry "GER"]
[SourceTitle "playchess.com"]
[Source "ChessBase"]
[SourceQuality "1"]
[TimeControl "40/5400+30:1800+30"]

1. e4 {[%emt 0:00:00]} e6 {[%emt 0:00:03]} 2. d4 {[%emt 0:00:00]} d5 {[%emt 0:00:32]} 3. Nd2 {[%emt 0:00:00]} Nf6 {[%emt 0:01:09]} 4. e5 {[%emt 0:00:00]} Nfd7 {[%emt 0:00:02]} 5. Bd3 {[%emt 0:00:23]} c5 {[%emt 0:00:38]} 6. c3 {[%emt 0:00:09]} Nc6 {[%emt 0:01:03]} 7. Ne2 {[%emt 0:00:52]} cxd4 {[%emt 0:01:07]} 8. cxd4 {[%emt 0:00:08]} f6 {[%emt 0:01:06]} 9. exf6 {[%emt 0:01:23]} Nxf6 10. O-O {[%emt 0:01:23]} Bd6 {[%emt 0:02:06]} 11. Nf3 {[%emt 0:01:10]} Qc7 {[%emt 0:00:41]} 12. h3 {[%emt 0:02:15]} O-O {[%emt 0:03:59]} 13. Be3 {[%emt 0:01:58]} Bd7 {[%emt 0:02:54]} 14. Rc1 {[%emt 0:05:10]} Rae8 {[%emt 0:09:29]} 15. Nc3 {[%emt 0:26:24]} a6 {[%emt 0:06:54]} 16. Re1 {[%emt 0:05:43]} Kh8 {[%emt 0:04:06]} 17. Bb1 {[%emt 0:02:04]} Qb8 {[%emt 0:11:03]} 18. Qd3 {[%emt 0:07:55]} g6 {[%emt 0:06:57]} 19. Bh6 {[%emt 0:10:14]} Rf7 {[%emt 0:06:37]} 20. Ng5 {[%emt 0:01:12]} Rfe7 {[%emt 0:00:50]} 21. Qf3 {[%emt 0:00:19]} Ng8 {[%emt 0:08:19]} 22. Nf7+ {[%emt 0:08:31]} Rxf7 {[%emt 0:00:11]} 23. Qxf7 {[%emt 0:00:06]} Nxh6 {[%emt 0:00:33]} 24. Qf6+ {[%emt 0:04:18]} Kg8 {[%emt 0:01:08]} 25. Rcd1 {[%emt 0:06:28]} Rf8 {[%emt 0:05:26]} 26. Qh4 {[%emt 0:00:45]} Nf5 {[%emt 0:01:25]} 27. Qg4 {[%emt 0:02:53]} Kg7 {[%emt 0:04:44]} 28. Rd2 {[%emt 0:03:07]} h5 {[%emt 0:04:32]} 29. Qd1 {[%emt 0:00:09]} Qa7 {[%emt 0:00:51]} 30. Bxf5 {[%emt 0:03:52]} Rxf5 {[%emt 0:00:23]} 31. a3 {[%emt 0:01:25]} Na5 {[%emt 0:02:55]} 32. Rde2 {[%emt 0:01:45]} Nc6 {[%emt 0:03:03]} 33. Rd2 {[%emt 0:00:17]} Bf4 {[%emt 0:02:21]} 34. Rd3 {[%emt 0:00:23]} Bg5 {[%emt 0:01:11]} 35. Re2 {[%emt 0:01:54]} Rf4 {[%emt 0:02:15]} 36. Red2 {[%emt 0:00:31]} Rh4 {[%emt 0:02:07]} 37. g3 {[%emt 0:00:28]} Bxd2 {[%emt 0:00:34]} 38. gxh4 {[%emt 0:00:54]} Bh6 {[%emt 0:01:33]} 39. Rg3 {[%emt 0:00:14]} Kh7 {[%emt 0:01:02]} 40. Qf3 {[%emt 0:02:11]} Qxd4 {[%emt 0:01:28]} 41. Ne2 {[%emt 0:30:55]} Qg7 {[%emt 0:31:19]} 42. Qb3 {[%emt 0:00:00]} b5 {[%emt 0:00:00]} 43. Kh1 {[%emt 0:00:00]} Na5 {[%emt 0:00:00]} 44. Qb4 {[%emt 0:00:00]} Nc4 {[%emt 0:00:00]} 45. b3 {[%emt 0:00:00]} Qa1+ {[%emt 0:00:00]} 46. Kh2 {[%emt 0:00:00]} Qxa3 {[%emt 0:00:00]} 47. Qc3 {[%emt 0:00:00]} Bg7 {[%emt 0:00:00]} 48. Qc2 {[%emt 0:00:00]} Ne5 {[%emt 0:00:00]} 49. f4 {[%emt 0:00:00]} Be8 {[%emt 0:00:00]} 50. fxe5 {[%emt 0:00:00]} Bxe5 {[%emt 0:00:00]} 51. Kg2 {[%emt 0:00:00]} Bxg3 {[%emt 0:00:00]} 52. Nxg3 {[%emt 0:00:00]} Qe7 {[%emt 0:00:00]} 53. Nxh5 {[%emt 0:00:00]} Kh6 {[%emt 0:00:00]} 54. Ng3 {[%emt 0:00:00]} Qxh4 {[%emt 0:00:00]} 55. Qc8 {[%emt 0:00:00]} Qe7 {[%emt 0:00:00]} 56. Qxa6 {[%emt 0:00:00]} Bd7 {[%emt 0:00:00]} 57. Qa8 {[%emt 0:00:00]} Qg7 {[%emt 0:00:00]} 58. Qa2 {[%emt 0:00:00]} Qd4 {[%emt 0:00:00]} 59. Qe2 {[%emt 0:00:50]} e5 {[%emt 0:01:01]} 60. Qf3 {[%emt 0:01:02]} Kg7 {[%emt 0:02:14]} 61. Kh2 {[%emt 0:01:36]} Qd2+ {[%emt 0:00:53]} 62. Kg1 {[%emt 0:02:26]} e4 {[%emt 0:01:05]} 63. Qg2 {[%emt 0:01:29]} Qxg2+ {[%emt 0:00:55]} 64. Kxg2 {[%emt 0:00:04]} Kf6 {[%emt 0:00:24]} 65. h4 {[%emt 0:00:14]} Bg4 {[%emt 0:00:51]} 66. Nf1 {[%emt 0:01:16]} Ke5 {[%emt 0:00:44]} 67. Ne3 {[%emt 0:01:11]} Bf3+ {[%emt 0:00:25]} 68. Kf2 {[%emt 0:00:07]} d4 {[%emt 0:00:21]} 69. Nc2 {[%emt 0:00:44]} Bd1 {[%emt 0:00:53]} 70. Na3 {[%emt 0:00:13]} Bxb3 {[%emt 0:00:30]} 71. Nxb5 {[%emt 0:00:04]} e3+ {[%emt 0:00:21]} 72. Ke1 {[%emt 0:00:03]} d3 {[%emt 0:00:48]} 73. Nc3 {[%emt 0:00:22]} d2+ {[%emt 0:00:40]} 74. Ke2 {[%emt 0:00:04]} Kd4 {[%emt 0:01:06]} 0-1

[Event "EYTCC Open U12 2018"]
[Site "Bad Blankeburg"]
[Date "2018.07.16"]
[Round "6"]
[White "Ermitsch, Magnus"]
[Black "Navumenka, Mikhei"]
[Result "1-0"]
[ECO "C13"]
[WhiteElo "1594"]
[BlackElo "1965"]
[Annotator "NA RC"]
[PlyCount "101"]
[EventDate "2018.07.12"]
[EventType "swiss"]
[EventCountry "GER"]
[SourceTitle "playchess.com"]
[Source "ChessBase"]
[SourceQuality "1"]
[TimeControl "40/5400+30:1800+30"]

1. e4 {[%emt 0:00:33]} e6 {[%emt 0:00:09]} 2. d4 {[%emt 0:00:52]} d5 {[%emt 0:00:07]} 3. Nc3 {[%emt 0:01:10]} Nf6 {[%emt 0:00:19]} 4. Bg5 {[%emt 0:01:24]} Be7 {[%emt 0:02:41]} 5. e5 {[%emt 0:02:35]} Nfd7 {[%emt 0:00:40]} 6. h4 {[%emt 0:02:41]} Bxg5 {[%emt 0:03:58]} 7. hxg5 {[%emt 0:00:22]} Qxg5 {[%emt 0:00:07]} 8. Qd3 {[%emt 0:01:37] C14: Französische Verteidigung (Klassische Hauptvariante)} Nf8 {[%emt 0:13:41]} 9. Nh3 {[%emt 0:05:58]} Qe7 {[%emt 0:00:11]} 10. Nf4 {[%emt 0:13:59] LiveBook: 5 Games} a6 $146 {[%emt 0:04:01]} ({Vorgänger:} 10... Nc6 11. O-O-O Bd7 12. Qg3 Rg8 13. Ncxd5 exd5 14. Nxd5 Qd8 15. Nf6+ gxf6 16. Qxg8 fxe5 17. dxe5 {½-½ (42) Lagno,K (2499)-Kortschnoj,V (2567) Marianske Lazne 2009}) 11. Be2 {[%emt 0:08:21]} c5 {[%emt 0:03:58]} 12. O-O-O {[%emt 0:05:07]} c4 {[%emt 0:02:24]} 13. Qg3 {[%emt 0:01:16]} Ng6 {[%emt 0:00:30]} 14. Nxg6 {[%emt 0:00:51]} fxg6 {[%emt 0:00:03]} 15. Rxh7 {[%emt 0:01:16]} Rxh7 {[%emt 0:00:44]} 16. Qxg6+ {[%emt 0:00:12]} Kd8 {[%emt 0:00:30]} 17. Qxh7 {[%emt 0:00:10]} Nc6 {[%emt 0:00:19]} 18. f4 {[%emt 0:04:36]} b5 {[%emt 0:01:58]} 19. Bf3 {[%emt 0:03:32]} b4 {[%emt 0:07:39]} 20. Qg8+ {[%emt 0:02:38]} Qe8 {[%emt 0:02:20]} 21. Qxe8+ {[%emt 0:01:09]} Kxe8 {[%emt 0:00:01]} 22. Na4 {[%emt 0:01:27]} Ke7 {[%emt 0:00:23]} 23. Nb6 {[%emt 0:00:53]} Rb8 {[%emt 0:00:03]} 24. Nxc4 {[%emt 0:00:20]} Bd7 {[%emt 0:00:35]} 25. Ne3 {[%emt 0:00:53]} g6 {[%emt 0:00:21]} 26. c3 {[%emt 0:02:01]} Rc8 {[%emt 0:02:27]} 27. Kd2 {[%emt 0:03:04]} Kf7 {[%emt 0:02:27]} (27... Rf8 $142 28. g3 bxc3+ 29. bxc3 Rb8) 28. Ng4 {[%emt 0:03:27]} bxc3+ {[%emt 0:00:44]} 29. bxc3 {[%emt 0:00:14]} Na5 {[%emt 0:00:10]} 30. Rb1 {[%emt 0:03:56]} Nc4+ {[%emt 0:00:06]} 31. Kc1 {[%emt 0:00:33]} Bc6 {[%emt 0:05:08]} 32. Be2 {[%emt 0:04:59]} Rh8 {[%emt 0:08:03]} 33. Bxc4 $1 {[%emt 0:05:23]} dxc4 {[%emt 0:00:15]} 34. Rb6 {[%emt 0:00:33]} Bxg2 {[%emt 0:00:46]} 35. Rxa6 {[%emt 0:00:43]} Rh4 {[%emt 0:08:44]} 36. Ne3 {[%emt 0:01:29]} Be4 {[%emt 0:00:14]} 37. d5 {[%emt 0:04:29]} Bxd5 {[%emt 0:00:56]} 38. Nxd5 {[%emt 0:00:09]} exd5 {[%emt 0:00:04]} 39. Rf6+ {[%emt 0:00:17]} Kg7 {[%emt 0:00:47]} 40. a4 {[%emt 0:00:35]} Rh1+ {[%emt 0:02:03]} 41. Kb2 {[%emt 0:30:13]} Rh2+ {[%emt 0:30:26]} 42. Ka3 {[%emt 0:00:34]} Rc2 {[%emt 0:00:07]} 43. Kb4 {[%emt 0:00:23]} Ra2 {[%emt 0:01:22]} 44. a5 {[%emt 0:01:35]} Ra1 $18 {[%emt 0:00:43]} 45. a6 {[%emt 0:00:22]} Ra2 {[%emt 0:00:05]} 46. Kc5 {[%emt 0:00:19]} Ra3 {[%emt 0:01:47]} 47. Kd4 {[%emt 0:00:32]} Ra5 {[%emt 0:00:07]} 48. Rd6 {[%emt 0:00:54]} Kf7 {[%emt 0:00:23]} 49. Rxd5 {[%emt 0:00:26]} Rxa6 {[%emt 0:00:04]} 50. Rd7+ {[%emt 0:02:15]} Kf8 {[%emt 0:01:20]} 51. Rd6 {[%emt 0:00:53]} 1-0

[Event "EYTCC Open U12 2018"]
[Site "Bad Blankeburg"]
[Date "2018.07.16"]
[Round "7"]
[White "Droin, Augustin"]
[Black "Laux, Dominik"]
[Result "1/2-1/2"]
[ECO "B18"]
[WhiteElo "2095"]
[BlackElo "1943"]
[Annotator "NA"]
[PlyCount "82"]
[EventDate "2018.07.12"]
[EventType "swiss"]
[EventCountry "GER"]
[SourceTitle "playchess.com"]
[Source "ChessBase"]
[SourceQuality "1"]
[TimeControl "40/5400+30:1800+30"]

1. e4 {[%emt 0:00:00]} c6 {[%emt 0:00:00]} 2. d4 {[%emt 0:00:03]} d5 {[%emt 0:00:00]} 3. Nc3 {[%emt 0:00:24]} dxe4 {[%emt 0:00:29]} 4. Nxe4 {[%emt 0:00:06]} Bf5 {[%emt 0:00:17]} 5. Ng3 {[%emt 0:00:50]} Bg6 {[%emt 0:00:36]} 6. Nh3 {[%emt 0:01:38]} e6 {[%emt 0:02:32] B18: Caro-Kann (Hauptvariante)} 7. Bc4 {[%emt 0:00:33]} (7. Nf4 Bd6 8. c3 Nf6 9. h4 Bxf4 10. Bxf4 h6 11. a4 O-O 12. a5 Nd5 13. Bd2 Nd7 14. c4 N5f6 15. h5 Bh7 16. Bc3 c5 {1-0 (68) Ivanchuk,V (2726)-Artemiev,V (2691) Huaian 2017}) 7... Nf6 {[%emt 0:02:26]} 8. O-O {[%emt 0:02:11]} Bd6 {[%emt 0:04:44]} 9. f4 {[%emt 0:00:46] LiveBook: 20 Partien} O-O {[%emt 0:02:42]} 10. c3 {[%emt 0:03:48]} ({White should try} 10. f5 $11 exf5 11. Nxf5) 10... Nbd7 $146 {[%emt 0:03:29]} ({Vorgänger:} 10... Qc7 11. Qf3 Nbd7 12. Ng5 Rae8 13. b4 b6 14. Be3 {½-½ (48) Bokros,A (2458)-Bodiroga,P (2390) Hungary 2014}) 11. f5 {[%emt 0:02:40]} Bxf5 {[%emt 0:03:28]} 12. Nxf5 {[%emt 0:00:25]} exf5 {[%emt 0:00:08]} 13. Rxf5 {[%emt 0:01:12]} Qc7 {[%emt 0:01:46]} 14. Bf4 {[%emt 0:05:39]} Bxf4 {[%emt 0:02:07]} 15. Rxf4 $11 {[%emt 0:03:22]} h6 {[%emt 0:07:28]} 16. Bb3 {[%emt 0:04:04]} Rfe8 {[%emt 0:04:09]} 17. Qf3 {[%emt 0:04:03]} Re7 {[%emt 0:06:20]} 18. Nf2 {[%emt 0:14:39]} Rae8 {[%emt 0:11:58]} 19. Ng4 {[%emt 0:02:48]} Nxg4 {[%emt 0:01:34]} 20. Qxg4 {[%emt 0:03:27]} Re1+ {[%emt 0:07:36]} 21. Rxe1 {[%emt 0:05:08]} Rxe1+ {[%emt 0:00:17]} 22. Kf2 {[%emt 0:01:19]} Re7 {[%emt 0:00:36]} 23. h4 {[%emt 0:10:45]} Qd6 {[%emt 0:08:06]} 24. Re4 {[%emt 0:12:46]} Nf6 {[%emt 0:10:03]} 25. Qc8+ {[%emt 0:00:18]} Kh7 {[%emt 0:00:15]} 26. Rxe7 {[%emt 0:00:17]} Qxe7 {[%emt 0:00:20]} 27. Qf5+ {[%emt 0:02:33]} g6 {[%emt 0:03:45]} 28. Qf4 {[%emt 0:00:46]} Nd5 {[%emt 0:02:55]} 29. Bxd5 {[%emt 0:04:15]} cxd5 {[%emt 0:00:08]} 30. Kf3 {[%emt 0:04:54]} a6 {[%emt 0:04:41]} 31. Qe5 {[%emt 0:03:17]} Qd7 {[%emt 0:06:04]} 32. Qf6 {[%emt 0:01:36]} h5 {[%emt 0:01:19]} 33. Qf4 {[%emt 0:03:11]} Kg7 {[%emt 0:01:29]} 34. Kf2 {[%emt 0:01:00]} Kg8 {[%emt 0:01:18]} 35. b3 {[%emt 0:00:43]} Qc6 {[%emt 0:00:48]} 36. Qf3 {[%emt 0:01:35]} Qd7 {[%emt 0:00:40]} 37. Ke2 {[%emt 0:00:50]} Qe6+ {[%emt 0:00:49]} 38. Kd2 {[%emt 0:00:44]} b5 {[%emt 0:00:45]} 39. Qf4 {[%emt 0:00:47]} Qc6 {[%emt 0:00:35]} 40. Qe5 {[%emt 0:00:14]} Kh7 {[%emt 0:00:38]} 41. Qf4 {[%emt 0:30:44]} Qe6 {[%emt 0:02:00]} 1/2-1/2

[Event "EYTCC Open U12 2018"]
[Site "Bad Blankeburg"]
[Date "2018.07.16"]
[Round "7"]
[White "Fule, Simon"]
[Black "Deuer, Marius"]
[Result "1-0"]
[ECO "B38"]
[WhiteElo "2061"]
[BlackElo "1834"]
[Annotator "NA"]
[PlyCount "91"]
[EventDate "2018.07.12"]
[EventType "swiss"]
[EventCountry "GER"]
[SourceTitle "playchess.com"]
[Source "ChessBase"]
[SourceQuality "1"]
[TimeControl "40/5400+30:1800+30"]

1. e4 {[%emt 0:00:00]} c5 {[%emt 0:00:00]} 2. Nf3 {[%emt 0:00:00]} Nc6 {[%emt 0:00:00]} 3. d4 {[%emt 0:00:00]} cxd4 {[%emt 0:00:00]} 4. Nxd4 {[%emt 0:00:00]} g6 {[%emt 0:00:00]} 5. c4 {[%emt 0:00:00]} Bg7 {[%emt 0:00:00]} 6. Be3 {[%emt 0:00:06]} Nf6 {[%emt 0:00:03]} 7. Nc3 {[%emt 0:00:07]} O-O {[%emt 0:00:06]} 8. Be2 {[%emt 0:00:07]} d6 {[%emt 0:00:30]} 9. O-O {[%emt 0:00:09]} Bd7 {[%emt 0:00:41]} 10. Nc2 {[%emt 0:00:13]} Be6 {[%emt 0:02:22]} 11. f3 {[%emt 0:08:43]} Nd7 {[%emt 0:01:46] LiveBook: 10 Games} 12. Qd2 {[%emt 0:01:48]} a5 {[%emt 0:02:14]} 13. Na4 {[%emt 0:10:24]} Rc8 {[%emt 0:10:07]} (13... Nc5 $1 $11 {bleibt in der Remisbreite.} 14. Nc3 f5) 14. Rac1 $11 {[%emt 0:06:28]} Nce5 {[%emt 0:04:57]} 15. b3 {[%emt 0:06:08]} Nc5 {[%emt 0:02:21]} 16. Nc3 {[%emt 0:02:22]} b6 {[%emt 0:13:29]} 17. Nd4 {[%emt 0:06:01]} Nc6 {[%emt 0:05:57]} 18. Ndb5 {[%emt 0:11:26]} Be5 {[%emt 0:11:41]} 19. Rfd1 {[%emt 0:11:14]} h5 {[%emt 0:09:47]} 20. Qc2 {[%emt 0:08:10]} Nb4 {[%emt 0:05:03]} 21. Qb1 {[%emt 0:01:25]} Nc6 {[%emt 0:03:12]} 22. f4 {[%emt 0:07:19]} Bxc3 {[%emt 0:05:25]} 23. Rxc3 {[%emt 0:01:50]} f6 {[%emt 0:00:33]} 24. Bf3 {[%emt 0:07:01]} Qd7 {[%emt 0:03:35]} 25. h3 {[%emt 0:00:56]} Kg7 {[%emt 0:01:18]} 26. Qc2 {[%emt 0:00:29]} Rfe8 {[%emt 0:02:04]} 27. Qf2 {[%emt 0:01:07]} Kh7 {[%emt 0:01:11]} 28. Qh4 {[%emt 0:00:48]} Kg7 {[%emt 0:02:46]} 29. Bc1 {[%emt 0:03:30]} Bf7 {[%emt 0:02:23]} 30. Rf1 {[%emt 0:02:00]} Rh8 {[%emt 0:02:15]} 31. Rd1 {[%emt 0:01:22]} Rhe8 {[%emt 0:00:29]} 32. Qg3 {[%emt 0:00:40]} Kh7 {[%emt 0:01:54]} 33. h4 {[%emt 0:00:31]} Qe6 {[%emt 0:01:36]} 34. Re1 {[%emt 0:01:07]} Kh8 {[%emt 0:01:48]} 35. Qf2 {[%emt 0:00:31]} Qd7 {[%emt 0:00:26]} 36. Qd2 {[%emt 0:00:45]} Kg8 {[%emt 0:01:17]} 37. f5 {[%emt 0:01:08]} gxf5 {[%emt 0:00:45]} 38. Qh6 {[%emt 0:00:06]} Ne5 {[%emt 0:01:35]} 39. Bxh5 {[%emt 0:00:23]} Bxh5 40. Qxh5 {[%emt 0:00:03]} f4 {[%emt 0:02:40]} 41. Bxf4 {[%emt 0:30:40]} Ned3 {[%emt 0:31:15]} 42. Re3 {[%emt 0:01:18]} Nxf4 {[%emt 0:00:48]} 43. Rg3+ {[%emt 0:00:06]} Kf8 {[%emt 0:00:05]} 44. Qh6+ {[%emt 0:00:09]} Kf7 {[%emt 0:00:18]} 45. Rg7+ {[%emt 0:00:10]} Ke6 {[%emt 0:00:22]} 46. Qxf4 {[%emt 0:00:09]} 1-0

[Event "EYTCC Open U12 2018"]
[Site "Bad Blankeburg"]
[Date "2018.07.16"]
[Round "7"]
[White "Tancsa, Tamas"]
[Black "Ermitsch, Magnus"]
[Result "1-0"]
[ECO "B44"]
[WhiteElo "2023"]
[BlackElo "1594"]
[Annotator "NA"]
[PlyCount "83"]
[EventDate "2018.07.12"]
[EventType "swiss"]
[EventCountry "GER"]
[SourceTitle "playchess.com"]
[Source "ChessBase"]
[SourceQuality "1"]
[TimeControl "40/5400+30:1800+30"]

1. e4 {[%emt 0:00:00]} c5 {[%emt 0:00:53]} 2. d4 {[%emt 0:02:20]} cxd4 {[%emt 0:02:05]} 3. Nf3 {[%emt 0:02:56]} e6 {[%emt 0:01:56]} 4. Nxd4 {[%emt 0:04:12]} Nc6 {[%emt 0:02:07]} 5. Nb5 {[%emt 0:02:22]} d6 {[%emt 0:01:41]} 6. c4 {[%emt 0:04:12]} Nf6 {[%emt 0:02:30]} 7. N1c3 {[%emt 0:03:09]} a6 {[%emt 0:02:34]} 8. Na3 {[%emt 0:04:11]} Be7 {[%emt 0:02:36]} 9. Be3 {[%emt 0:02:40]} O-O {[%emt 0:04:40] LiveBook: 23 Partien} 10. Be2 {[%emt 0:05:17]} Bd7 {[%emt 0:04:12]} 11. O-O {[%emt 0:03:17]} Rc8 {[%emt 0:05:25] B44: Sicilian: Taimanov: 5 Nb5} (11... Qb8 12. f3 Na7 13. Kh1 b5 14. Bxa7 Rxa7 15. cxb5 d5 16. exd5 Nxd5 17. Nxd5 exd5 18. Qxd5 Bxa3 19. bxa3 Bxb5 20. Bxb5 Qxb5 {½-½ (53) Kononenko,D (2513)-Trajkovic,P (2390) Evpatoria 2007}) 12. f3 {[%emt 0:07:44]} Qa5 {[%emt 0:06:05]} 13. Qd2 {[%emt 0:01:53]} Rfd8 {[%emt 0:01:48]} 14. Rfd1 {[%emt 0:00:25]} Ne5 $146 {[%emt 0:10:06]} ({Predecessor:} 14... d5 15. exd5 Bxa3 16. bxa3 Ne5 17. Qb2 b5 18. dxe6 Bxe6 19. cxb5 axb5 20. Nxb5 {1-0 (33) Diaz Diaz,A (2134)-Alvarado Diaz,A Vecindario 2007}) 15. Nd5 {[%emt 0:04:11]} Qxd2 {[%emt 0:00:17]} 16. Nxe7+ {[%emt 0:00:10]} Kf8 {[%emt 0:00:10]} 17. Bxd2 {[%emt 0:00:08]} Kxe7 {[%emt 0:00:14]} 18. Ba5 {[%emt 0:00:02]} Rh8 {[%emt 0:02:01]} 19. Bb4 {[%emt 0:02:04]} Ne8 {[%emt 0:01:05]} 20. f4 {[%emt 0:02:20]} Nc6 {[%emt 0:00:26]} 21. Bc3 {[%emt 0:00:07]} Nf6 {[%emt 0:07:13]} 22. Bf3 {[%emt 0:00:33]} h5 {[%emt 0:01:53]} 23. Nc2 {[%emt 0:00:09]} Na7 {[%emt 0:04:27]} 24. b3 {[%emt 0:02:18]} Bc6 {[%emt 0:02:15]} 25. Re1 {[%emt 0:08:51]} Rcd8 {[%emt 0:04:26]} 26. Rad1 {[%emt 0:01:23]} Ne8 {[%emt 0:03:54]} 27. Bb4 {[%emt 0:00:33]} Nc8 $18 {[%emt 0:00:26]} (27... b6 28. Rd2 Kd7) 28. Rd2 {[%emt 0:00:18]} Kf8 {[%emt 0:01:45]} 29. Red1 {[%emt 0:00:13]} Kg8 {[%emt 0:00:31]} 30. e5 {[%emt 0:00:24]} d5 {[%emt 0:01:10]} 31. cxd5 {[%emt 0:00:12]} Bxd5 {[%emt 0:00:40]} 32. Bxd5 {[%emt 0:00:07]} Rxd5 {[%emt 0:00:25]} 33. Rxd5 {[%emt 0:00:03]} exd5 {[%emt 0:00:14]} 34. Rxd5 {[%emt 0:00:03]} Kh7 {[%emt 0:00:31]} 35. Rd7 {[%emt 0:00:30]} Nb6 {[%emt 0:01:56]} 36. Rxb7 {[%emt 0:02:00]} Nd5 {[%emt 0:00:16]} 37. Rxf7 {[%emt 0:00:17]} Kg6 {[%emt 0:00:39]} 38. e6 {[%emt 0:02:26]} Ndf6 {[%emt 0:02:26]} 39. Nd4 {[%emt 0:00:49]} Rg8 {[%emt 0:03:35]} 40. f5+ {[%emt 0:00:37]} Kh6 {[%emt 0:00:42]} 41. Nc6 {[%emt 0:31:10]} Rh8 {[%emt 0:30:29]} 42. h4 {[%emt 0:01:38]} 1-0